bitfinex-derivatives/quotes_ETHF0:USTF0_20210702
["timestamp","ask_amount","ask_price","bid_price","bid_amount"]
[1625230431844,10.07673959,2052.2,2051.9,2.20527]
[1625230432905,2.87158463,2052.1,2051.9,2.20527]
[1625230433096,7.87158463,2052.1,2051.9,2.20527]
[1625230433798,2.87158463,2052.1,2051.9,2.20527]
[1625230433899,7.87158463,2052.1,2051.9,2.20527]
[1625230435514,2.87296234,2052.0,2051.9,2.20527]
[1625230436767,8.14539104,2052.2,2051.9,2.20527]
[1625230436768,2.87286397,2052.1,2051.9,2.20527]
[1625230437471,2.8733635,2052.0,2051.9,2.20527]
[1625230439432,8.14591255,2052.2,2051.9,2.20527]
[1625230439433,4.41054,2052.2,2051.9,2.20527]
[1625230439884,2.87353733,2052.3,2051.9,2.20527]
[1625230439993,41.9186,2052.1,2051.9,4.41054]
[1625230440446,2.87353733,2052.3,2051.9,4.41054]
[1625230440900,2.87386613,2052.1,2051.9,4.41054]
[1625230441048,3.86206613,2052.1,2051.9,4.41054]
[1625230441297,4.72461311,2052.1,2051.9,4.41054]
[1625230442045,6.92988311,2052.1,2051.9,4.41054]
[1625230442896,6.92988311,2052.1,2051.9,3.22074]
[1625230443013,55.4246,2052.0,2051.9,3.22074]
[1625230443499,58.29880668,2052.0,2051.9,3.22074]
[1625230443801,5.94177733,2052.1,2051.9,3.22074]
[1625230444603,2.87424179,2052.0,2051.9,3.22074]
[1625230446060,5.9418368,2052.1,2051.9,3.22074]
[1625230446708,2.87416093,2052.0,2051.9,3.22074]
[1625230447567,5.07925499,2052.1,2051.9,3.22074]
[1625230447668,5.07925499,2052.1,2051.9,6.87964]
[1625230448918,2.87398499,2052.1,2051.9,6.87964]
[1625230449870,2.87394097,2052.2,2051.9,6.87964]
[1625230451371,2.87368306,2052.3,2051.9,6.87964]
[1625230451721,2.87389777,2052.2,2051.9,6.87964]
[1625230454673,2.87423759,2052.1,2051.9,6.87964]
[1625230455628,2.87420947,2052.2,2051.9,6.87964]
[1625230456479,45.25980947,2052.2,2051.9,6.87964]
[1625230457328,2.87420947,2052.2,2051.9,6.87964]
[1625230459388,2.87420947,2052.2,2052.0,60.8955]
[1625230459738,2.87479886,2052.6,2051.9,6.87964]
[1625230460141,2.87429189,2052.8,2052.5,4.41054]
[1625230460289,2.87429189,2052.8,2052.5,8.12574]
[1625230460538,4.759,2053.1,2052.5,8.12574]
[1625230461447,2.20527,2053.3,2052.5,8.12574]
[1625230462248,2.20527,2053.3,2053.2,4.41054]
[1625230462395,2.20527,2053.3,2053.2,6.81224]
[1625230470244,2.20527,2053.7,2053.2,6.81224]
[1625230472254,2.20527,2053.8,2053.6,2.20527]
[1625230473208,2.20527,2053.8,2053.2,2.20527]
[1625230473308,4.76907,2053.8,2053.2,2.20527]
[1625230473610,54.7006,2053.3,2053.2,2.20527]
[1625230473710,58.459,2053.3,2053.2,2.20527]
[1625230474060,3.7584,2053.3,2053.2,2.20527]
[1625230475163,2.20527,2053.5,2053.2,2.20527]
[1625230475268,2.20527,2053.5,2053.2,5.38757]
[1625230476221,6.96427,2053.8,2053.2,5.38757]
[1625230476318,6.96427,2053.8,2053.4,2.20527]
[1625230476931,6.96427,2053.8,2053.4,53.58287]
[1625230477084,2.20527,2053.8,2053.4,53.58287]
[1625230477631,2.20527,2054.2,2053.4,53.58287]
[1625230478284,2.20527,2054.2,2054.1,2.20527]
[1625230486364,2.20527,2054.2,2054.1,5.59257]
[1625230490480,2.20527,2054.2,2054.1,2.20527]
[1625230491682,2.20527,2054.2,2054.0,2.20527]
[1625230491783,5.27117,2054.2,2052.4,55.4261]
[1625230491882,1.0,2054.1,2052.4,55.4261]
[1625230492288,1.973,2054.1,2052.0,1.0]
[1625230492383,2.20527,2053.5,2052.7,2.20527]
[1625230492484,5.78087,2053.5,2052.7,2.20527]
[1625230493084,41.0663,2053.2,2052.7,2.20527]
[1625230495239,8.95334,2053.5,2052.7,2.20527]
[1625230495340,13.71234,2053.5,2052.7,2.20527]
[1625230495739,18.71234,2053.5,2052.7,2.20527]
[1625230496339,2.20527,2053.0,2052.7,2.20527]
[1625230496441,4.96367,2053.0,2052.7,2.20527]
[1625230497155,4.96367,2053.0,2052.5,2.20527]
[1625230497508,9.96367,2053.0,2052.5,2.20527]
[1625230497858,57.9337,2052.6,2052.5,2.20527]
[1625230498358,60.13897,2052.6,2052.5,2.20527]
[1625230498562,2.20527,2052.6,2052.5,2.20527]
[1625230503021,5.39037,2052.6,2052.5,2.20527]
[1625230504223,5.39037,2052.6,2051.2,1.0]
[1625230504331,5.39037,2052.6,1840.0,0.05]
[1625230504332,10.39037,2052.6,2050.5,1.0]
[1625230504424,2.20527,2051.7,2051.6,2.20527]
[1625230504525,5.46877,2051.7,2051.6,2.20527]
[1625230505026,3.2635,2051.7,2051.6,2.20527]
[1625230505425,3.2635,2051.7,2051.6,1.37027]
[1625230505524,3.2635,2051.7,2050.6,14.5852]
[1625230505829,3.2635,2051.7,2049.9,1.0]
[1625230505926,58.5119,2051.2,2049.5,4.3739914]
[1625230506037,59.5119,2051.2,2049.5,4.3739914]
[1625230506126,58.5119,2051.2,2049.5,4.3739914]
[1625230506426,58.5119,2051.2,2051.1,2.20527]
[1625230506829,2.20527,2051.3,2051.1,2.20527]
[1625230507385,58.04537,2051.6,2051.1,2.20527]
[1625230507685,2.20527,2051.6,2051.1,2.20527]
[1625230508236,58.81827,2051.6,2051.1,2.20527]
[1625230508440,61.02354,2051.6,2051.5,2.20527]
[1625230510541,61.02354,2051.6,2050.1,16.465]
[1625230510643,64.09534,2051.6,2050.1,15.465]
[1625230511145,64.09534,2051.6,2050.2,17.607824]
[1625230512496,2.20527,2050.9,2050.8,2.20527]
[1625230514204,59.6848,2051.6,2050.8,2.20527]
[1625230514506,2.20527,2051.4,2051.2,2.20527]
[1625230514605,2.20527,2051.4,2050.8,2.20527]
[1625230514908,0.9647,2052.3,2050.8,2.20527]
[1625230515117,16.4399,2052.4,2050.8,5.02387]
[1625230515184,15.4399,2052.4,2050.8,5.02387]
[1625230515483,15.4399,2052.4,2050.8,48.03647]
[1625230516537,2.20527,2052.2,2052.1,2.20527]
[1625230518548,4.41054,2052.2,2052.1,2.20527]
[1625230521163,2.20527,2052.2,2052.1,2.20527]
[1625230521263,0.975,2052.2,2052.1,3.17587]
[1625230521862,4.759,2052.9,2052.1,2.20527]
[1625230521964,4.759,2052.9,2052.1,5.57307]
[1625230522063,72.7864,2053.4,2052.1,5.57307]
[1625230522516,2.20527,2053.0,2052.6,2.20527]
[1625230522665,2.20527,2053.0,2052.6,5.21987]
[1625230524368,4.63447,2053.0,2052.6,2.20527]
[1625230524569,2.20527,2052.7,2052.6,2.20527]
[1625230524668,2.20527,2052.7,2052.1,2.20527]
[1625230524769,60.6775,2052.6,2052.1,2.20527]
[1625230524871,2.20527,2052.7,2052.1,2.20527]
[1625230525020,4.63447,2053.0,2052.1,2.20527]
[1625230526524,4.63447,2053.0,2052.5,2.20527]
[1625230526675,2.20527,2053.0,2052.5,2.20527]
[1625230527928,20.7662,2053.4,2052.5,2.20527]
[1625230528080,1.0,2053.9,2052.5,2.20527]
[1625230528178,8.4754085,2054.0,2052.5,2.20527]
[1625230528329,4.759,2054.0,2052.5,2.20527]
[1625230528530,2.20527,2053.6,2053.3,2.20527]
[1625230528631,2.20527,2053.6,2053.3,4.78057]
[1625230530534,2.20527,2053.6,2053.5,2.20527]
[1625230531135,57.89377,2053.6,2053.5,2.20527]
[1625230531588,2.20527,2053.6,2053.5,2.20527]
[1625230532436,2.20527,2053.6,2053.5,4.70717]
[1625230536453,2.20527,2053.6,2053.5,2.20527]
[1625230536555,2.7086,2053.7,2053.5,2.20527]
[1625230538012,2.20527,2053.8,2053.5,2.20527]
[1625230538509,2.20527,2054.1,2053.5,2.20527]
[1625230540624,2.20527,2053.6,2053.5,2.20527]
[1625230540872,2.20527,2054.1,2053.5,2.20527]
[1625230541471,20.8275,2054.5,2053.5,2.20527]
[1625230541576,4.57489228,2054.8,2053.5,5.41727]
[1625230541577,3.71680499,2054.8,2053.5,5.41727]
[1625230541670,3.71680499,2054.8,2053.5,10.41727]
[1625230541997,8.47481316,2055.5,2054.0,1.15]
[1625230542083,3.71581316,2055.5,2054.7,42.9784]
[1625230542182,3.71581316,2055.5,2054.7,46.2958]
[1625230542584,3.71581316,2055.5,2055.4,4.41054]
[1625230542737,3.71581316,2055.5,2055.4,7.40394]
[1625230542839,10.78022344,2056.3,2055.4,7.40394]
[1625230542840,2.20527,2056.3,2055.4,7.40394]
[1625230544652,2.20527,2056.6,2056.2,2.20527]
[1625230544745,2.20527,2056.6,2056.2,5.14497]
[1625230545101,2.20527,2056.6,2056.2,65.68367]
[1625230545294,2.20527,2056.6,2056.2,5.14497]
[1625230546600,2.20527,2056.3,2056.2,5.14497]
[1625230550468,2.20527,2056.3,2056.2,2.9397]
[1625230550567,2.20527,2056.3,2056.0,2.20527]
[1625230550669,4.41054,2056.3,2056.0,2.20527]
[1625230551721,4.759,2057.3,2056.0,2.20527]
[1625230551722,1.0,2057.2,2056.0,2.20527]
[1625230551823,4.759,2057.3,2056.0,5.58197]
[1625230552674,2.20527,2056.6,2056.0,7.78724]
[1625230554630,2.20527,2056.6,2056.5,4.41054]
[1625230557437,5.7293,2057.3,2056.5,4.41054]
[1625230557587,4.759,2057.3,2056.5,4.41054]
[1625230558700,6.96427,2057.3,2057.2,2.20527]
[1625230559155,6.96427,2057.3,2057.2,1.05369049]
[1625230559654,6.96427,2057.3,2057.2,9.049e-05]
[1625230560357,6.96427,2057.3,2055.7,1.0]
[1625230560458,9.95157,2057.3,2055.6,60.5113]
[1625230560556,10.95157,2057.3,2055.6,60.5113]
[1625230560658,10.95157,2057.3,2056.6,2.20527]
[1625230560757,2.20527,2056.7,2056.6,2.20527]
[1625230561869,4.95517,2056.7,2055.4,1.0]
[1625230561970,9.95517,2056.7,2054.0,1.15]
[1625230562121,1.9818,2056.6,2054.0,1.15]
[1625230562621,1.9818,2056.6,2053.6,5.0]
[1625230562720,1.9818,2056.6,2055.1,2.20527]
[1625230562721,2.20527,2055.2,2055.1,2.20527]
[1625230563171,0.9818,2056.6,2055.1,2.20527]
[1625230563271,1.0,2056.7,2055.1,4.64507]
[1625230563372,4.759,2057.3,2055.1,4.64507]
[1625230563724,4.759,2057.3,2056.0,54.0523]
[1625230563873,4.759,2057.3,2056.0,57.2775]
[1625230564125,16.2479,2057.5,2056.0,57.2775]
[1625230564227,15.2479,2057.5,2056.0,57.2775]
[1625230564823,2.20527,2056.8,2056.7,2.20527]
[1625230564922,2.20527,2056.8,2056.7,5.25067]
[1625230565772,2.20527,2056.8,2056.7,3.0454]
[1625230566779,4.41054,2056.8,2056.7,3.0454]
[1625230567677,15.2479,2057.5,2056.7,3.0454]
[1625230567978,0.9848,2057.6,2056.7,3.0454]
[1625230568729,2.20527,2057.1,2056.9,2.20527]
[1625230570334,4.55567,2057.1,2056.9,2.20527]
[1625230570834,2.20527,2057.0,2056.9,2.20527]
[1625230571737,2.20527,2057.0,2055.2,16.1737]
[1625230571839,2.20527,2057.0,2055.2,15.1737]
[1625230572639,2.20527,2057.0,2055.2,20.1737]
[1625230572788,2.20527,2057.0,2056.8,2.20527]
[1625230573740,20.7134,2057.9,2056.8,2.20527]
[1625230573841,20.7134,2057.9,2056.6,2.20527]
[1625230573941,3.2399,2057.7,2056.6,2.20527]
[1625230574191,63.1176,2057.5,2056.6,2.20527]
[1625230574842,4.41054,2056.7,2056.6,2.20527]
[1625230575694,2.912,2056.8,2056.6,2.20527]
[1625230575804,15.8224,2057.5,2056.6,5.08747]
[1625230576854,2.20527,2057.2,2057.1,2.20527]
[1625230578406,2.20527,2057.2,2056.6,2.8822]
[1625230578560,2.20527,2057.2,2055.4,1.0]
[1625230578657,2.20527,2057.2,2042.5,37.52289345]
[1625230578820,2.20527,2057.2,2054.2,1.0]
[1625230578911,2.20527,2056.4,2056.0,2.20527]
[1625230580864,2.20527,2056.1,2056.0,2.20527]
[1625230582126,2.20527,2056.4,2056.0,2.20527]
[1625230582229,2.20527,2056.4,2056.0,4.67687]
[1625230582882,2.20527,2056.4,2056.3,2.20527]
[1625230582983,4.759,2057.3,2056.3,2.20527]
[1625230583085,14.603,2057.6,2056.3,2.20527]
[1625230584887,2.20527,2057.2,2057.1,2.20527]
[1625230586890,4.41054,2057.2,2057.1,2.20527]
[1625230586993,4.41054,2057.2,2056.9,2.20527]
[1625230589504,4.41054,2057.2,2056.6,2.20527]
[1625230590921,4.41054,2057.2,2057.1,2.20527]
[1625230591020,4.41054,2057.2,2057.1,4.90387]
[1625230591119,2.20527,2057.2,2057.1,4.90387]
[1625230592626,4.759,2058.1,2057.1,4.90387]
[1625230593029,2.20527,2057.8,2057.7,2.20527]
[1625230593128,2.20527,2057.8,2057.7,5.43087]
[1625230593440,2.20527,2057.8,2057.1,2.20527]
[1625230593530,2.20527,2057.8,2056.2,15.7678]
[1625230593634,5.0,2057.7,2055.4,1.971]
[1625230593729,5.0,2057.7,2053.0,3.42624643]
[1625230593830,1.0,2057.6,2053.0,3.42624643]
[1625230593933,1.0,2057.6,2055.0,15.0364]
[1625230594032,8.0,2057.5,2055.0,15.0364]
[1625230594181,6.0,2057.4,2055.0,15.0364]
[1625230594332,43.1677,2056.2,2055.1,17.688436]
[1625230594430,46.2656,2056.2,2055.1,17.688436]
[1625230594641,46.2656,2056.2,2053.4,1.0]
[1625230594736,1.0,2056.1,2053.3,5.0]
[1625230594886,1.0,2056.1,2052.4,3.43087863]
[1625230594992,2.20527,2054.2,2053.9,2.20527]
[1625230595144,2.7523,2054.2,2053.9,2.20527]
[1625230595894,2.7523,2054.2,2053.7,2.20527]
[1625230596193,55.126,2054.2,2053.7,2.20527]
[1625230596794,2.7523,2054.2,2053.7,2.20527]
[1625230596997,4.41054,2053.8,2053.7,2.20527]
[1625230597747,2.7523,2054.2,2053.7,2.20527]
[1625230597847,3.4332,2054.8,2053.7,2.20527]
[1625230598953,2.20527,2054.2,2054.1,2.20527]
[1625230600153,2.20527,2054.2,2053.7,2.20527]
[1625230600254,5.15457,2054.2,2053.7,2.20527]
[1625230600957,2.20527,2053.8,2053.7,2.20527]
[1625230602021,2.20527,2053.8,2052.2,1.0]
[1625230602123,2.20527,2053.8,2051.9,14.6594]
[1625230602525,46.8718,2053.4,2051.9,14.6594]
[1625230602628,50.0715,2053.4,2051.9,14.6594]
[1625230602726,50.0715,2053.4,2052.0,17.823676]
[1625230603075,2.20527,2052.9,2052.7,2.20527]
[1625230603176,4.75267,2052.9,2052.7,2.20527]
[1625230604181,2.20527,2052.9,2052.7,2.20527]
[1625230604334,0.24527,2052.9,2052.7,2.20527]
[1625230604431,1.0,2054.1,2052.7,2.20527]
[1625230604533,15.7532,2055.0,2052.7,5.80957]
[1625230604632,1.0,2054.7,2052.7,5.80957]
[1625230604734,1.0,2054.7,2052.8,17.773238]
[1625230604832,20.7532,2055.0,2052.8,17.773238]
[1625230605037,2.20527,2053.5,2053.4,2.20527]
[1625230605333,2.20527,2053.5,2051.8,1.0]
[1625230605484,2.20527,2053.5,2045.7,31.03220668]
[1625230605584,2.20527,2053.5,2050.7,60.4591]
[1625230605785,2.20527,2053.5,2051.2,0.16569484]
[1625230605885,53.84047,2053.5,2051.2,0.16569484]
[1625230606141,54.84047,2053.5,2051.2,17.74095384]
[1625230606341,54.84047,2053.5,2051.3,0.16574346]
[1625230606441,3.20527,2053.5,2051.3,0.16574346]
[1625230606641,3.20527,2053.5,2051.4,17.608773]
[1625230606994,3.20527,2053.5,2052.8,2.20527]
[1625230607097,2.20527,2052.9,2052.8,2.20527]
[1625230607194,4.50707,2052.9,2051.4,1.0]
[1625230607347,4.50707,2052.9,2051.3,17.731342]
[1625230607493,4.50707,2052.9,2051.1,15.8396]
[1625230607899,4.50707,2052.9,2051.2,17.575023]
[1625230608749,2.20527,2052.9,2051.2,21.168823]
[1625230609053,2.20527,2052.6,2052.4,2.20527]
[1625230611053,2.20527,2052.5,2052.4,2.20527]
[1625230611652,2.20527,2052.5,2051.1,15.8396]
[1625230611904,2.20527,2052.5,2050.4,1.88190441]
[1625230612004,2.20527,2052.5,2050.5,0.16559696]
[1625230612357,2.20527,2052.5,2050.5,19.87416499]
[1625230612454,2.20527,2052.5,2050.6,5.0]
[1625230612854,2.20527,2052.5,2050.7,17.598221]
[1625230613055,2.20527,2052.1,2051.8,2.20527]
[1625230613558,1.05235377,2052.1,2051.8,2.20527]
[1625230614214,2.20527,2052.5,2051.8,2.20527]
[1625230614311,2.20527,2052.5,2051.8,5.10477]
[1625230614417,15.8061,2053.6,2051.8,5.10477]
[1625230614716,15.8061,2053.6,2051.9,17.55142]
[1625230615124,18.01137,2053.6,2053.4,2.20527]
[1625230615223,18.01137,2053.6,2053.4,4.70737]
[1625230615423,2.20527,2053.6,2053.4,4.70737]
[1625230616875,2.20527,2053.6,2053.4,2.20527]
[1625230617136,2.20527,2053.6,2053.2,2.20527]
[1625230617137,4.41054,2053.6,2051.9,15.047]
[1625230617286,7.52344,2053.6,2051.9,15.047]
[1625230617736,7.52344,2053.6,2052.0,17.727572]
[1625230618989,7.52344,2053.6,2052.2,46.194]
[1625230619089,2.20527,2053.6,2053.4,2.20527]
[1625230619240,2.20527,2053.6,2053.4,5.23737]
[1625230619941,2.20527,2053.6,2053.4,3.0321]
[1625230620043,2.20527,2053.6,2051.9,15.047]
[1625230620144,4.83617,2053.6,2051.9,15.047]
[1625230620644,9.83617,2053.6,2051.9,15.047]
[1625230620994,9.83617,2053.6,2050.8,55.8853]
[1625230621094,2.20527,2052.5,2052.4,2.20527]
[1625230622604,2.6309,2053.6,2052.4,2.20527]
[1625230622703,15.4557,2054.2,2052.4,5.14327]
[1625230623104,2.20527,2052.5,2052.4,5.14327]
[1625230623201,5.89207,2052.5,2052.4,2.20527]
[1625230624354,5.89207,2052.5,2050.7,16.2673]
[1625230624452,5.89207,2052.5,2050.7,15.2673]
[1625230625105,2.20527,2051.9,2051.8,2.20527]
[1625230625409,1.0,2053.1,2051.8,2.20527]
[1625230625555,18.0234,2053.2,2051.8,2.20527]
[1625230626557,15.2892,2053.2,2051.8,2.20527]
[1625230627110,2.20527,2052.5,2052.4,2.20527]
[1625230627258,5.14847,2052.5,2052.4,2.20527]
[1625230629167,7.35374,2052.5,2052.4,2.20527]
[1625230631688,7.35374,2052.5,2050.9,61.3097]
[1625230632390,7.35374,2052.5,2051.0,22.594519]
[1625230632488,7.35374,2052.5,2051.0,26.101019]
[1625230632690,4e-05,2052.5,2051.0,26.101019]
[1625230632793,14.6901,2055.1,2051.0,26.101019]
[1625230632916,14.6901,2055.1,2051.1,1.0]
[1625230632917,1.0,2055.0,2051.1,1.0]
[1625230633108,1.0,2055.0,2051.5,1.15]
[1625230633207,2.20527,2054.1,2054.0,2.20527]
[1625230633308,2.20527,2054.1,2054.0,4.98267]
[1625230634109,1.0,2055.1,2054.0,4.98267]
[1625230634209,16.1315,2055.2,2054.0,4.98267]
[1625230634459,2.39000458,2056.2,2054.0,4.98267]
[1625230634564,0.9726,2056.2,2054.0,4.98267]
[1625230634665,1.41718149,2056.6,2054.0,4.98267]
[1625230634910,1.0,2056.5,2054.0,4.98267]
[1625230635060,5.759,2056.5,2054.0,4.98267]
[1625230635158,2.20527,2055.8,2055.7,2.20527]
[1625230635912,2.20527,2055.8,2055.7,7e-05]
[1625230636014,2.20527,2055.8,2055.5,2.20527]
[1625230637170,2.20527,2055.6,2055.5,2.20527]
[1625230638221,2.20527,2055.6,2055.1,2.20527]
[1625230639224,2.20527,2055.2,2055.1,4.41054]
[1625230640647,5.19937,2055.2,2055.1,4.41054]
[1625230641594,5.19937,2055.2,2053.4,1.0]
[1625230641695,5.19937,2055.2,2053.1,52.8104]
[1625230642152,6.19937,2055.2,2053.1,52.8104]
[1625230642348,6.19937,2055.2,2053.3,17.586083]
[1625230642447,5.19937,2055.2,2053.3,17.586083]
[1625230642549,5.19937,2055.2,2053.3,3.1334]
[1625230642698,2.20527,2055.2,2053.3,8.1334]
[1625230642956,1.0,2055.5,2053.5,5.0]
[1625230643048,2.20527,2055.6,2053.5,5.0]
[1625230643254,2.20527,2055.6,2055.3,2.20527]
[1625230643401,2.20527,2055.6,2055.3,5.37317]
[1625230643849,2.20527,2055.6,2055.3,3.1679]
[1625230645260,2.20527,2055.4,2055.3,3.1679]
[1625230647004,2.20527,2055.4,2055.2,2.20527]
[1625230648308,2.20527,2055.6,2055.2,2.20527]
[1625230648458,5.759,2056.5,2055.2,5.86137]
[1625230648609,4.759,2056.5,2055.2,5.86137]
[1625230649111,15.9205,2056.9,2055.2,5.86137]
[1625230649213,2.20527,2056.6,2056.5,2.20527]
[1625230649311,2.20527,2056.6,2056.5,5.82217]
[1625230650731,2.20527,2056.6,2056.5,2.20527]
[1625230651242,4.41054,2056.6,2056.5,2.20527]
[1625230651443,6.85494,2056.6,2056.5,2.20527]
[1625230653195,4.64967,2056.6,2056.5,2.20527]
[1625230653297,2.20527,2057.0,2056.5,2.20527]
[1625230655299,2.20527,2057.0,2056.9,2.20527]
[1625230655902,2.20527,2057.0,2056.5,2.20527]
[1625230656202,4.94607,2057.0,2056.5,2.20527]
[1625230657353,4.94607,2057.0,2056.9,2.20527]
[1625230657454,4.94607,2057.0,2056.5,2.20527]
[1625230658908,2.20527,2057.0,2056.5,2.20527]
[1625230659260,2.20527,2057.0,2056.9,2.20527]
[1625230668041,2.20527,2057.0,2056.5,2.20527]
[1625230669356,2.20527,2056.6,2056.5,2.20527]
[1625230672508,2.20527,2057.0,2056.5,2.20527]
[1625230672658,4.759,2057.8,2056.5,5.92957]
[1625230672856,4.759,2057.8,2056.5,10.92957]
[1625230673056,1.41674983,2058.3,2056.5,10.92957]
[1625230673361,2.20527,2058.1,2058.0,2.20527]
[1625230673462,2.20527,2058.1,2058.0,5.24667]
[1625230673710,2.20527,2058.1,2058.0,4.09561475]
[1625230674059,1.0,2058.9,2058.0,4.09561475]
[1625230674214,6.17531183,2059.1,2058.0,4.09561475]
[1625230674461,4.759,2059.1,2058.0,4.09561475]
[1625230675311,2.20527,2058.4,2058.3,2.20527]
[1625230675560,2.20527,2058.4,2057.7,43.0097]
[1625230675715,2.20527,2058.4,2056.8,1.0]
[1625230675863,2.20527,2058.4,2056.3,45.1733]
[1625230675960,3.20527,2058.4,2056.3,45.1733]
[1625230676263,3.20527,2058.4,2056.8,17.52783]
[1625230676362,2.20527,2058.4,2056.8,17.52783]
[1625230677365,2.20527,2058.0,2057.7,2.20527]
[1625230678767,2.20527,2058.0,2056.6,1.0]
[1625230678870,2.20527,2058.0,2056.3,44.1733]
[1625230679272,3.20527,2058.0,2056.3,44.1733]
[1625230679421,2.20527,2057.1,2057.0,2.20527]
[1625230680071,2.8571,2057.3,2057.0,2.20527]
[1625230680882,0.9804,2057.9,2057.0,2.20527]
[1625230680987,2.4223,2058.2,2057.0,2.20527]
[1625230681337,2.20527,2057.2,2057.0,2.20527]
[1625230686765,5.35037,2057.2,2057.0,2.20527]
[1625230688222,5.35037,2057.2,2056.3,44.1733]
[1625230689473,5.35037,2057.2,2057.1,2.20527]
[1625230691680,5.35037,2057.2,2056.3,44.1733]
[1625230692185,5.35037,2057.2,2055.8,15.9954]
[1625230692283,6.35037,2057.2,2055.8,15.9954]
[1625230692382,7.32627,2057.2,2055.8,15.9954]
[1625230692534,7.32627,2057.2,2054.6,14.5406]
[1625230692783,7.32627,2057.2,2054.7,15.9696]
[1625230692885,7.32627,2057.2,2054.7,16.9696]
[1625230693185,7.32627,2057.2,2055.5,17.518659]
[1625230693388,2.20527,2056.7,2056.3,2.20527]
[1625230693490,4.51827,2056.7,2056.3,2.20527]
[1625230695449,2.20527,2056.4,2056.3,2.20527]
[1625230696506,2.20527,2056.4,2056.1,2.20527]
[1625230697463,4.41054,2056.4,2056.1,4.41054]
[1625230699876,8.07414,2056.4,2056.1,4.41054]
[1625230702231,4.41054,2056.4,2056.1,4.41054]
[1625230702330,2.20527,2056.4,2056.1,4.41054]
[1625230702430,5.759,2057.1,2056.1,4.41054]
[1625230702531,4.759,2057.1,2056.1,7.60224]
[1625230703037,5.759,2057.8,2056.1,7.60224]
[1625230703388,5.0,2057.7,2056.1,7.60224]
[1625230703488,2.20527,2056.9,2056.8,2.20527]
[1625230715532,2.20527,2056.9,2056.7,42.5678]
[1625230716836,2.20527,2056.9,2056.6,2.20527]
[1625230717035,5.94707,2056.9,2056.6,2.20527]
[1625230717285,5.94707,2056.9,2056.6,2.05907]
[1625230717586,2.20527,2056.7,2056.6,2.05907]
[1625230720097,2.20527,2056.7,2056.2,2.20527]
[1625230723573,2.20527,2056.3,2056.2,2.20527]
[1625230728403,2.20527,2056.3,2056.0,55.9444]
[1625230728503,2.20527,2056.3,2055.8,2.20527]
[1625230729618,2.20527,2055.9,2055.8,2.20527]
[1625230729719,5.41767,2055.9,2055.8,2.20527]
[1625230729919,63.18487,2055.9,2055.8,2.20527]
[1625230730120,5.41767,2055.9,2055.8,2.20527]
[1625230732176,2.20527,2055.9,2055.8,2.20527]
[1625230733275,2.20527,2055.9,2054.6,1.0]
[1625230733375,50.29437,2055.9,2054.4,1.35304532]
[1625230733678,2.20527,2055.0,2054.9,2.20527]
[1625230734178,3.4689,2055.4,2054.9,2.20527]
[1625230734778,3.41652472,2056.0,2054.9,2.20527]
[1625230734779,1.9848,2056.0,2054.9,2.20527]
[1625230734879,0.9848,2056.0,2054.9,2.20527]
[1625230734979,1.43224059,2056.1,2054.9,2.20527]
[1625230735132,1.43210652,2056.2,2054.9,2.20527]
[1625230735580,2.20527,2055.5,2055.4,2.20527]
[1625230737587,4.41054,2055.5,2055.4,2.20527]
[1625230738489,4.41054,2055.5,2054.9,2.20527]
[1625230739542,2.20527,2055.0,2054.9,2.20527]
[1625230741363,2.20527,2055.5,2054.9,2.20527]
[1625230741666,2.20527,2055.1,2054.9,2.20527]
[1625230741769,5.72437,2055.1,2054.3,1.35515635]
[1625230741867,5.72437,2055.1,2054.2,1.3564696]
[1625230742218,5.72437,2055.1,2053.9,1.35724684]
[1625230742316,44.9521,2054.5,2053.9,1.35724684]
[1625230742416,47.6997,2054.5,2053.9,1.35724684]
[1625230742667,47.6997,2054.5,2053.8,1.35724387]
[1625230742869,2.7476,2054.5,2053.8,1.35724387]
[1625230742971,2.7476,2054.5,2053.7,1.35674827]
[1625230743280,2.7476,2054.5,2053.8,1.35636176]
[1625230743480,3.20527,2055.1,2054.2,50.7844]
[1625230743580,2.20527,2055.1,2054.2,50.7844]
[1625230743729,4.41054,2054.3,2054.2,50.7844]
[1625230744483,0.959,2055.4,2054.2,50.7844]
[1625230744588,15.116,2055.5,2054.2,50.7844]
[1625230745438,15.116,2055.5,2054.3,17.541818]
[1625230745639,2.20527,2055.4,2055.2,2.20527]
[1625230746588,2.20527,2055.4,2055.1,3.1508]
[1625230746740,4.84047,2055.4,2055.1,3.1508]
[1625230746839,4.84047,2055.4,2055.0,2.20527]
[1625230747088,4.84047,2055.4,2055.0,1.48947]
[1625230747589,60.4891,2055.1,2055.0,1.48947]
[1625230747690,62.69437,2055.1,2055.0,1.48947]
[1625230748494,2.20527,2055.1,2055.0,1.48947]
[1625230751301,2.4305888,2055.9,2055.0,1.48947]
[1625230751450,1.43053161,2056.0,2055.0,4.64647]
[1625230751651,2.20527,2055.5,2055.0,4.64647]
[1625230753659,2.20527,2055.5,2055.0,6.85174]
[1625230755671,2.20527,2055.1,2055.0,6.85174]
[1625230757631,2.20527,2055.5,2055.0,6.85174]
[1625230757730,2.20527,2055.8,2055.0,6.85174]
[1625230758281,2.20527,2055.8,2055.2,52.0701]
[1625230758682,2.20527,2055.8,2055.0,6.85174]
[1625230759683,2.20527,2055.4,2055.0,6.85174]
[1625230760986,2.20527,2055.8,2055.0,6.85174]